bitfinex-derivatives/quotes_BTCF0:USTF0_20241214
["timestamp","ask_amount","ask_price","bid_price","bid_amount"]
[1734172532966,0.08836079,101480.0,101470.0,2.2050074]
[1734172533159,0.08836079,101480.0,101470.0,1.9688767]
[1734172533469,0.23620526,101490.0,101480.0,0.049268]
[1734172533768,0.23620526,101490.0,101480.0,0.94565061]
[1734172534165,0.23620526,101490.0,101480.0,1.44240977]
[1734172534471,0.23670526,101490.0,101480.0,1.44240977]
[1734172535565,0.23620526,101490.0,101480.0,1.44240977]
[1734172536559,0.23670526,101490.0,101480.0,1.44240977]
[1734172536756,0.23670526,101490.0,101480.0,1.26536734]
[1734172537468,0.23620526,101490.0,101480.0,1.26536734]
[1734172538571,0.23670526,101490.0,101480.0,1.26536734]
[1734172540177,0.23670526,101490.0,101480.0,1.80352269]
[1734172540378,0.11886079,101490.0,101480.0,1.80352269]
[1734172540579,0.23670526,101490.0,101480.0,1.80352269]
[1734172541182,0.23670526,101490.0,101480.0,2.16432269]
[1734172541687,0.23620526,101490.0,101480.0,2.16432269]
[1734172546683,0.23620526,101490.0,101480.0,2.16414362]
[1734172548793,0.23620526,101490.0,101480.0,1.92808704]
[1734172550981,0.23620526,101490.0,101480.0,1.92805794]
[1734172551198,0.20620526,101490.0,101480.0,1.92805794]
[1734172551499,0.20620526,101490.0,101480.0,1.99185794]
[1734172551699,0.08836079,101490.0,101480.0,1.99185794]
[1734172551896,0.08836079,101490.0,101480.0,2.3462022]
[1734172555394,0.08836079,101490.0,101480.0,2.34589929]
[1734172557096,0.08836079,101490.0,101480.0,2.40714109]
[1734172557301,0.08836079,101490.0,101480.0,2.34589929]
[1734172557504,0.08836079,101490.0,101480.0,2.05062214]
[1734172557802,0.08836079,101490.0,101480.0,2.34581023]
[1734172558404,0.08836079,101490.0,101480.0,2.40705203]
[1734172558803,0.08836079,101490.0,101480.0,2.22332663]
[1734172559008,0.08836079,101490.0,101480.0,2.40705203]
[1734172559304,0.08836079,101490.0,101480.0,2.11186394]
[1734172559500,0.08836079,101490.0,101480.0,2.39984162]
[1734172560799,0.08836079,101490.0,101480.0,2.21611622]
[1734172561009,0.08836079,101490.0,101480.0,2.39984162]
[1734172561305,0.08836079,101490.0,101480.0,2.33859982]
[1734172562503,0.08836079,101490.0,101480.0,2.34003702]
[1734172564205,0.23640526,101500.0,101490.0,0.049263]
[1734172564406,0.23640526,101500.0,101490.0,1.0091735]
[1734172564617,0.23640526,101500.0,101490.0,1.42475956]
[1734172564801,0.23640526,101500.0,101490.0,1.92151872]
[1734172565413,0.23640526,101500.0,101490.0,1.92108348]
[1734172565603,0.11856079,101500.0,101490.0,1.92108348]
[1734172566006,0.11856079,101500.0,101490.0,2.20944981]
[1734172566405,0.11856079,101500.0,101490.0,1.92108348]
[1734172566609,0.11856079,101500.0,101490.0,1.9141565]
[1734172566805,0.11856079,101500.0,101490.0,1.9154043]
[1734172566806,0.0302,101500.0,101490.0,1.9154043]
[1734172568508,0.0302,101500.0,101490.0,1.62624289]
[1734172568702,0.0302,101500.0,101490.0,1.9154043]
[1734172569601,0.0302,101500.0,101490.0,1.62624289]
[1734172569802,0.15356079,101510.0,101490.0,1.9154043]
[1734172570002,0.15356079,101510.0,101500.0,0.82750867]
[1734172570203,0.15356079,101510.0,101500.0,1.07010154]
[1734172570513,0.15406079,101510.0,101500.0,1.07010154]
[1734172570716,0.15406079,101510.0,101500.0,1.5668607]
[1734172571114,0.15406079,101510.0,101500.0,1.56677316]
[1734172571621,0.15406079,101510.0,101500.0,1.80267397]
[1734172571622,0.15356079,101510.0,101500.0,1.80267397]
[1734172572502,0.15406079,101510.0,101500.0,1.80267397]
[1734172572918,0.15406079,101510.0,101500.0,2.16347397]
[1734172573511,0.15356079,101510.0,101500.0,2.16347397]
[1734172574517,0.08886079,101510.0,101500.0,2.16347397]
[1734172574718,0.0005,101510.0,101500.0,1.98881496]
[1734172575219,0.0005,101510.0,101500.0,2.34315922]
[1734172575410,0.0005,101510.0,101500.0,2.28191742]
[1734172575611,0.12156079,101520.0,101500.0,2.28191742]
[1734172575612,0.12156079,101520.0,101510.0,0.049253]
[1734172575808,0.12156079,101520.0,101510.0,0.7070881]
[1734172576309,0.12156079,101520.0,101510.0,1.20384726]
[1734172576505,0.12206079,101520.0,101510.0,1.20384726]
[1734172576707,0.12206079,101520.0,101510.0,1.26508906]
[1734172577517,0.12156079,101520.0,101510.0,1.26508906]
[1734172578517,0.12206079,101520.0,101510.0,1.27490512]
[1734172579420,0.12206079,101520.0,101510.0,1.63570512]
[1734172581121,0.0337,101520.0,101510.0,1.63570512]
[1734172583126,0.12206079,101520.0,101510.0,1.63570512]
[1734172586726,0.12156079,101520.0,101510.0,1.51322152]
[1734172586922,0.12156079,101520.0,101510.0,1.63570512]
[1734172587522,0.12156079,101520.0,101510.0,1.93067219]
[1734172588514,0.12156079,101520.0,101510.0,2.17366365]
[1734172590522,0.12156079,101520.0,101510.0,1.93787035]
[1734172592328,0.12156079,101520.0,101510.0,1.93796156]
[1734172592632,0.12156079,101520.0,101510.0,1.87671976]
[1734172593621,0.12156079,101520.0,101510.0,1.15511976]
[1734172593920,0.12156079,101520.0,101510.0,1.87671976]
[1734172594627,0.23940526,101520.0,101510.0,1.87671976]
[1734172596330,0.23940526,101520.0,101510.0,1.15511976]
[1734172596536,0.23940526,101520.0,101510.0,1.87671976]
[1734172596833,0.23940526,101520.0,101510.0,1.87696849]
[1734172597133,0.34741997,101520.0,101510.0,1.4379228]
[1734172597322,0.2295755,101520.0,101510.0,1.20419753]
[1734172597520,0.2295755,101520.0,101510.0,1.38131176]
[1734172602733,0.23927909,101520.0,101510.0,1.38131176]
[1734172607527,0.23927909,101520.0,101510.0,1.32006996]
[1734172607731,0.23927909,101520.0,101510.0,1.38131176]
[1734172610529,0.23927909,101520.0,101510.0,1.14516819]
[1734172610732,0.23927909,101520.0,101510.0,1.38131176]
[1734172612141,0.23927909,101520.0,101510.0,1.02051176]
[1734172612345,0.23927909,101520.0,101510.0,1.38131176]
[1734172617852,0.23927909,101520.0,101510.0,1.32006996]
[1734172618152,0.23927909,101520.0,101510.0,1.38131176]
[1734172618753,0.23927909,101520.0,101510.0,1.02051176]
[1734172618955,0.23927909,101520.0,101510.0,1.38131176]
[1734172622356,0.23927909,101520.0,101510.0,1.02051176]
[1734172622547,0.23927909,101520.0,101510.0,1.38131176]
[1734172622855,0.23927909,101520.0,101510.0,1.20419753]
[1734172623652,0.2295755,101520.0,101510.0,1.20419753]
[1734172623850,0.2295755,101520.0,101510.0,1.44260533]
[1734172623851,0.1471275,101520.0,101510.0,1.44260533]
[1734172624055,0.1471275,101520.0,101510.0,1.29769753]
[1734172624460,0.26515215,101520.0,101510.0,1.83580897]
[1734172624660,0.26515215,101520.0,101510.0,1.5996654]
[1734172625556,0.26515215,101520.0,101510.0,1.59983372]
[1734172625557,0.11802465,101520.0,101510.0,1.59983372]
[1734172625762,0.11802465,101520.0,101510.0,1.95417798]
[1734172626260,0.20650892,101520.0,101510.0,2.01541978]
[1734172626662,0.11802465,101520.0,101510.0,2.01561895]
[1734172627865,0.11802465,101520.0,101510.0,1.95437715]
[1734172628158,0.20649157,101520.0,101510.0,1.60003289]
[1734172628762,0.20649157,101520.0,101510.0,1.66127469]
[1734172628965,0.20648085,101520.0,101510.0,1.66127469]
[1734172631156,0.20648085,101520.0,101510.0,1.66146567]
[1734172631860,0.20648085,101520.0,101510.0,1.60022387]
[1734172634967,0.20648085,101520.0,101510.0,1.66146567]
[1734172639475,0.0884562,101520.0,101510.0,1.66146567]
[1734172639780,0.0884562,101520.0,101510.0,2.01580993]
[1734172639979,0.0884562,101520.0,101510.0,2.01564995]
[1734172640178,0.0884562,101520.0,101510.0,1.66130569]
[1734172640970,0.0884562,101520.0,101510.0,2.01564995]
[1734172641279,0.0884562,101520.0,101510.0,1.66130569]
[1734172641677,0.0884562,101520.0,101510.0,1.68121993]
[1734172642577,0.11802465,101530.0,101510.0,2.03556419]
[1734172642772,0.11802465,101530.0,101520.0,0.82749867]
[1734172642968,0.29743012,101540.0,101520.0,1.07104153]
[1734172643179,0.29723967,101540.0,101530.0,1.38108321]
[1734172643379,0.29723967,101540.0,101530.0,1.38105734]
[1734172643781,0.29673967,101540.0,101530.0,1.38106036]
[1734172644183,0.29673967,101540.0,101530.0,1.38105893]
[1734172644784,0.29723967,101540.0,101530.0,1.38105893]
[1734172645583,0.15011217,101540.0,101530.0,1.38105893]
[1734172645883,0.14961217,101540.0,101530.0,1.38105893]
[1734172646176,0.1481342,101540.0,101530.0,1.26530946]
[1734172646383,0.1481342,101540.0,101530.0,1.20406766]
[1734172646779,0.1486342,101540.0,101530.0,1.20406766]
[1734172647771,0.1481342,101540.0,101530.0,1.21375743]
[1734172648176,0.1481342,101540.0,101530.0,1.27499923]
[1734172648679,0.1486342,101540.0,101530.0,1.27499923]
[1734172649678,0.1481342,101540.0,101530.0,1.21375743]
[1734172650871,0.1486342,101540.0,101530.0,1.21375743]
[1734172651590,0.1486342,101540.0,101530.0,1.27499923]
[1734172652686,0.1481342,101540.0,101530.0,1.27484534]
[1734172652989,0.1481342,101540.0,101530.0,1.3339436]
[1734172654386,0.1481342,101540.0,101530.0,1.21146]
[1734172654592,0.1481342,101540.0,101530.0,1.3339436]
[1734172656279,0.0303,101540.0,101530.0,1.3339436]
[1734172657778,0.0303,101540.0,101530.0,1.03897653]
[1734172657987,0.0303,101540.0,101530.0,1.81667971]
[1734172659792,0.2143342,101550.0,101540.0,0.049239]
[1734172659985,0.2143342,101550.0,101540.0,0.70939984]
[1734172660386,0.2143342,101550.0,101540.0,1.44200872]
[1734172660790,0.2138342,101550.0,101540.0,1.44200872]
[1734172661694,0.2143342,101550.0,101540.0,1.44200872]
[1734172662789,0.2138342,101550.0,101540.0,1.44200872]
[1734172663794,0.2143342,101550.0,101540.0,1.44200872]
[1734172665693,0.2138342,101550.0,101540.0,1.44200872]
[1734172667294,0.3609617,101550.0,101540.0,1.44200872]
[1734172667592,0.4714375,101550.0,101540.0,1.27034943]
[1734172667793,0.4714375,101550.0,101540.0,0.53774055]
[1734172667794,0.3536033,101550.0,101540.0,0.53774055]
[1734172668194,0.2923615,101550.0,101540.0,0.64822135]
[1734172668499,0.2431275,101550.0,101540.0,0.64822135]
[1734172668992,0.2431275,101550.0,101540.0,0.70946315]
[1734172669293,0.2431275,101550.0,101540.0,0.94531287]
[1734172670092,0.36101533,101550.0,101540.0,0.76837232]
[1734172671194,0.36104551,101550.0,101540.0,0.76837232]
[1734172672191,0.2431275,101550.0,101540.0,1.26513148]
[1734172672786,0.21395768,101550.0,101540.0,1.57089883]
[1734172672992,0.36108518,101550.0,101540.0,1.80701856]
[1734172673287,0.21395768,101550.0,101540.0,1.57089883]
[1734172675199,0.21395768,101550.0,101540.0,1.57090775]
[1734172675701,0.21395768,101550.0,101540.0,1.58065898]
[1734172676096,0.36108518,101550.0,101540.0,1.58065898]
[1734172679193,0.26508518,101550.0,101540.0,1.58065898]
[1734172679411,0.11795768,101550.0,101540.0,1.58065898]
[1734172679600,0.11795768,101550.0,101540.0,1.5806729]
[1734172682504,0.11795768,101550.0,101540.0,1.58061217]
[1734172684510,0.11795768,101550.0,101540.0,1.45812857]
[1734172684804,0.11795768,101550.0,101540.0,1.58061217]
[1734172685712,0.11795768,101550.0,101540.0,1.5812216]
[1734172694217,0.11795768,101550.0,101540.0,1.458738]
[1734172694417,0.11795768,101550.0,101540.0,1.5812216]
[1734172696914,0.11795768,101550.0,101540.0,1.6424634]
[1734172697113,0.11795768,101550.0,101540.0,1.5812216]
[1734172699219,0.11795768,101550.0,101540.0,1.93556586]
[1734172700114,0.11795768,101550.0,101540.0,1.93629666]
[1734172702321,0.11795768,101550.0,101540.0,1.64132959]
[1734172702525,0.11795768,101550.0,101540.0,1.93667369]
[1734172703021,0.11795768,101550.0,101540.0,1.99791549]
[1734172703225,0.11795768,101550.0,101540.0,1.9980234]
[1734172703614,0.26508518,101560.0,101550.0,0.049234]
[1734172703817,0.26508518,101560.0,101550.0,1.07576973]
[1734172704326,0.26508518,101560.0,101550.0,1.57271017]
[1734172704634,0.1471275,101560.0,101550.0,1.57271017]
[1734172704817,0.26517413,101560.0,101550.0,1.57271017]
[1734172705619,0.26517413,101560.0,101550.0,1.51146837]
[1734172706319,0.1471275,101560.0,101550.0,1.74765916]
[1734172709017,0.1963565,101560.0,101550.0,1.45022657]
[1734172709217,0.1963565,101560.0,101550.0,0.70745204]
[1734172721434,0.1963565,101560.0,101550.0,0.34665204]
[1734172721634,0.1963565,101560.0,101550.0,0.70745204]
[1734172722436,0.3729095,101560.0,101550.0,1.00275183]
[1734172722932,0.1963565,101560.0,101550.0,1.00275183]
[1734172723936,0.3729095,101560.0,101550.0,1.00275183]
[1734172724136,0.3729095,101560.0,101550.0,0.70745204]
[1734172724137,0.1963565,101560.0,101550.0,0.70745204]
[1734172726432,0.1963565,101560.0,101550.0,1.00275183]
[1734172729828,0.3729095,101560.0,101550.0,1.25119308]
[1734172730435,0.1963565,101560.0,101550.0,1.00275183]
[1734172732342,0.1963565,101560.0,101550.0,1.25132902]
[1734172733242,0.1963565,101560.0,101550.0,0.89052902]
[1734172733540,0.1963565,101560.0,101550.0,1.25132902]
[1734172735441,0.3729095,101560.0,101550.0,1.25132902]
[1734172735644,0.3729095,101560.0,101550.0,0.89052902]
[1734172735843,0.3729095,101560.0,101550.0,1.25137324]
[1734172736233,0.3729095,101560.0,101550.0,0.89057324]
[1734172736434,0.3729095,101560.0,101550.0,1.25137324]
[1734172737148,0.1963565,101560.0,101550.0,1.015197]
[1734172742743,0.1963565,101560.0,101550.0,1.375997]
[1734172743441,0.1471275,101560.0,101550.0,1.43742376]
[1734172743638,0.11812069,101560.0,101550.0,1.58956823]
[1734172743945,0.11812069,101560.0,101550.0,2.08632739]
[1734172745042,0.11812069,101560.0,101550.0,2.38289506]
[1734172745234,0.11812069,101560.0,101550.0,2.08632739]
[1734172745742,0.11812069,101560.0,101550.0,1.79251322]
[1734172745932,0.049229,101560.0,101550.0,2.28533795]
[1734172746137,0.049229,101560.0,101550.0,1.99057311]
[1734172746336,0.16734969,101560.0,101550.0,1.93127153]
[1734172746549,0.16734969,101560.0,101550.0,1.87117153]
[1734172750546,0.16734969,101560.0,101550.0,1.93241333]
[1734172750738,0.16734969,101560.0,101550.0,1.87117153]
[1734172751351,0.16734969,101560.0,101550.0,1.93241333]
[1734172751742,0.16734969,101560.0,101550.0,1.87117153]
[1734172753352,0.16734969,101560.0,101550.0,1.93241333]
[1734172753553,0.16734969,101560.0,101550.0,1.99741333]
[1734172756855,0.16734969,101560.0,101550.0,1.99718885]
[1734172758548,0.11812069,101560.0,101550.0,1.99718885]
[1734172761360,0.11812069,101560.0,101550.0,1.99707858]
[1734172762753,0.20665436,101560.0,101550.0,1.99707858]
[1734172762956,0.20665436,101560.0,101550.0,2.35142284]
[1734172763450,0.20665436,101560.0,101550.0,2.05638016]
[1734172765660,0.20665436,101560.0,101550.0,1.80942102]
[1734172765857,0.20665436,101560.0,101550.0,2.05615075]
[1734172766054,0.20665436,101560.0,101550.0,1.99490895]
[1734172767162,0.17936249,101560.0,101550.0,1.31271273]
[1734172767360,0.37571899,101560.0,101550.0,1.37395453]
[1734172767546,0.37571899,101560.0,101550.0,1.3633682]
[1734172767547,0.2575983,101560.0,101550.0,1.3633682]
[1734172767747,0.1963565,101560.0,101550.0,1.3633682]
[1734172767952,0.1963565,101560.0,101550.0,1.61037518]
[1734172768152,0.1963565,101560.0,101550.0,1.3633682]
[1734172768666,0.2575983,101560.0,101550.0,1.61036929]
[1734172769260,0.1963565,101560.0,101550.0,1.3633682]
[1734172769458,0.1963565,101560.0,101550.0,1.61044906]
[1734172769760,0.1963565,101560.0,101550.0,1.3633682]
[1734172771366,0.1963565,101560.0,101550.0,1.0025682]
[1734172773164,0.1963565,101560.0,101550.0,0.7074192]
[1734172773964,0.1963565,101560.0,101550.0,0.3466192]
[1734172774165,0.20642483,101560.0,101550.0,0.7074192]
[1734172774762,0.26766663,101560.0,101550.0,0.6461774]
[1734172774967,0.26766663,101560.0,101550.0,0.7074192]
[1734172776671,0.44421963,101560.0,101550.0,0.82325471]
[1734172776970,0.86626143,101560.0,101550.0,0.41322071]
[1734172777269,0.95789213,101560.0,101550.0,0.17707731]
[1734172778170,0.049234,101550.0,101540.0,0.88449851]
[1734172778369,0.29208228,101550.0,101540.0,0.88449851]
[1734172779859,0.35332408,101550.0,101540.0,0.88449851]
[1734172780271,0.29208228,101550.0,101540.0,0.88449851]
[1734172780771,0.29208228,101550.0,101530.0,1.39179475]
[1734172780772,0.89067708,101550.0,101530.0,1.39179475]
[1734172781071,0.25557448,101540.0,101530.0,1.33005295]
[1734172781266,0.31459327,101540.0,101530.0,0.65839219]
[1734172781571,0.31459327,101540.0,101530.0,0.64836111]
[1734172781962,0.37583507,101540.0,101530.0,0.64886111]
[1734172782163,0.22838679,101540.0,101530.0,0.64886111]
[1734172782963,0.22838679,101540.0,101530.0,0.64836111]
[1734172783169,0.22838679,101540.0,101530.0,0.58711931]
[1734172783480,0.22838679,101540.0,101530.0,0.53787731]
[1734172783658,0.22838679,101540.0,101530.0,0.23831911]
[1734172783863,0.049244,101530.0,101520.0,1.44356767]
[1734172784175,0.13758912,101530.0,101520.0,1.44356767]
[1734172785674,0.13758912,101530.0,101520.0,1.41176767]
[1734172786065,0.13758912,101530.0,101520.0,1.17562427]
[1734172788169,0.13758912,101530.0,101520.0,1.14512427]
[1734172788369,0.19818912,101530.0,101520.0,1.14512427]
[1734172788866,0.19818912,101530.0,101520.0,1.14562427]
[1734172790873,0.109844,101530.0,101520.0,1.14562427]
[1734172791467,0.19818912,101530.0,101520.0,1.14562427]
[1734172794671,0.16778912,101530.0,101520.0,1.14562427]
[1734172795778,0.16778912,101530.0,101520.0,0.78482427]
[1734172795973,0.16778912,101530.0,101520.0,1.14562427]
[1734172796282,0.16778912,101530.0,101520.0,0.78482427]
[1734172796572,0.16778912,101530.0,101520.0,1.14562427]
[1734172796778,0.16778912,101530.0,101520.0,0.78482427]
[1734172796980,0.16778912,101530.0,101520.0,1.14562427]
[1734172797867,0.16778912,101530.0,101520.0,0.78482427]
[1734172798180,0.28569511,101530.0,101520.0,1.14562427]
[1734172798876,0.28569511,101530.0,101520.0,1.14512427]
[1734172799265,0.28569511,101530.0,101520.0,0.78432427]
[1734172799571,0.28569511,101530.0,101520.0,1.14512427]
[1734172799777,0.16778912,101530.0,101520.0,1.14512427]
[1734172800273,0.28569511,101530.0,101520.0,1.14512427]
[1734172800674,0.16778912,101530.0,101520.0,1.14512427]
[1734172801176,0.28569511,101530.0,101520.0,1.14512427]
[1734172801578,0.25549511,101530.0,101520.0,1.14512427]
[1734172801778,0.13758912,101530.0,101520.0,1.44576767]
[1734172802169,0.25549511,101530.0,101520.0,1.44576767]
[1734172804175,0.20625111,101530.0,101520.0,1.32993216]
[1734172804377,0.08834512,101530.0,101520.0,1.62508116]
[1734172804581,0.25549011,101540.0,101520.0,1.63597441]
[1734172804877,0.25549011,101540.0,101530.0,0.9172551]
[1734172805079,0.16714499,101540.0,101530.0,0.9172551]
[1734172805675,0.25553947,101540.0,101530.0,1.03554583]
[1734172805880,0.13763348,101540.0,101530.0,1.28259354]
[1734172806179,0.25553947,101540.0,101530.0,1.28259314]
[1734172807579,0.20630047,101540.0,101530.0,1.10802391]
[1734172807774,0.08839448,101540.0,101530.0,1.10802391]
[1734172807969,0.08839448,101540.0,101530.0,1.54354127]
[1734172809568,0.08839448,101540.0,101530.0,1.60478307]
[1734172813082,0.20630047,101550.0,101530.0,1.95912733]
[1734172813284,0.20630047,101550.0,101540.0,0.94527543]
[1734172813470,0.20630047,101550.0,101540.0,0.76838136]
[1734172813986,0.20680047,101550.0,101540.0,0.76838136]
[1734172814973,0.20630047,101550.0,101540.0,1.12918136]
[1734172815174,0.08839448,101550.0,101540.0,1.30600572]
[1734172815984,0.08889448,101550.0,101540.0,1.30600572]
[1734172817082,0.08889448,101550.0,101540.0,1.12918136]
[1734172818187,0.08889448,101550.0,101540.0,0.76838136]
[1734172818483,0.08889448,101550.0,101540.0,1.12918136]
[1734172818984,0.08839448,101550.0,101540.0,1.12918136]
[1734172825893,0.19887028,101550.0,101540.0,1.00669776]
[1734172826084,0.32128179,101550.0,101540.0,0.89837196]
[1734172826792,0.82953007,101550.0,101540.0,0.17677196]
[1734172826987,0.049239,101540.0,101530.0,0.22601196]
[1734172827185,0.31446828,101540.0,101530.0,0.22601196]
[1734172827383,0.19668728,101540.0,101530.0,0.28725376]
[1734172827781,0.31447038,101540.0,101530.0,0.28725376]
[1734172827995,0.19668728,101540.0,101530.0,0.28725376]
[1734172829887,0.31448798,101540.0,101530.0,0.28725376]
[1734172830192,0.31448797,101540.0,101530.0,0.28725376]
[1734172830493,0.37572977,101540.0,101530.0,0.22601196]
[1734172831087,0.25792908,101540.0,101530.0,0.22601196]
[1734172832693,0.25792908,101540.0,101530.0,0.1104818]
[1734172833287,0.19668728,101540.0,101530.0,0.1104818]
[1734172836686,0.19668728,101540.0,101530.0,0.0612418]
[1734172836896,0.049244,101530.0,101520.0,1.38117768]
[1734172837102,0.34814958,101530.0,101520.0,0.88441852]
[1734172837996,0.40939138,101530.0,101520.0,0.88391852]
[1734172838183,0.4093681,101530.0,101520.0,0.58681796]
[1734172838385,0.3481263,101530.0,101520.0,0.64805976]
[1734172838589,0.25981862,101530.0,101520.0,0.59881376]
[1734172838992,0.32106042,101530.0,101520.0,0.53757196]
[1734172839299,0.32106042,101530.0,101520.0,0.0612418]
[1734172839300,0.8293087,101530.0,101520.0,0.0612418]
[1734172839601,0.71153408,101530.0,101520.0,0.0612418]
[1734172840089,0.82920222,101530.0,101520.0,0.0612418]
[1734172840499,0.46840222,101530.0,101520.0,0.0612418]
[1734172840698,0.40716042,101530.0,101520.0,0.0612418]
[1734172841200,0.47828542,101530.0,101520.0,0.0612418]
[1734172841385,0.33083714,101530.0,101520.0,0.0612418]
[1734172841790,0.26959534,101530.0,101520.0,0.0612418]
[1734172846105,0.049248,101520.0,101510.0,1.08416217]
[1734172846305,0.13744864,101520.0,101510.0,1.14540397]
[1734172847012,0.13744864,101520.0,101510.0,1.14490397]
[1734172850201,0.13744864,101520.0,101510.0,1.38076273]
[1734172853207,0.13744864,101520.0,101510.0,1.20399077]
[1734172853809,0.13744864,101520.0,101510.0,0.84319077]
[1734172854002,0.13744864,101520.0,101510.0,1.20399077]
[1734172854210,0.25511678,101520.0,101510.0,1.20399077]
[1734172855205,0.25511678,101520.0,101510.0,1.49913977]
[1734172856220,0.16691614,101520.0,101510.0,1.74558414]
[1734172858211,0.16691614,101520.0,101510.0,1.50972538]
[1734172860421,0.16691614,101520.0,101510.0,1.14892538]
[1734172860624,0.16691614,101520.0,101510.0,1.50972538]
[1734172861121,0.16691614,101520.0,101510.0,1.50978722]
[1734172862422,0.16691614,101520.0,101510.0,1.14898722]
[1734172862627,0.16691614,101520.0,101510.0,1.50978722]
[1734172863418,0.16691614,101520.0,101510.0,1.14898722]
[1734172863626,0.16691614,101520.0,101510.0,1.50978722]
[1734172865123,0.16691614,101520.0,101510.0,1.26328101]
[1734172865327,0.31436442,101520.0,101510.0,1.50989283]
[1734172866228,0.31436442,101520.0,101510.0,1.5099287]
[1734172868121,0.31436442,101520.0,101510.0,1.86427296]
[1734172869632,0.31436442,101520.0,101510.0,1.50347296]
[1734172869835,0.31436442,101520.0,101510.0,1.86444626]
[1734172870627,0.31436442,101520.0,101510.0,1.50364626]
[1734172870827,0.31436442,101520.0,101510.0,1.86444626]
[1734172872537,0.31436442,101520.0,101510.0,1.50364626]
[1734172872839,0.31436442,101520.0,101510.0,1.86444626]
[1734172873031,0.19669628,101520.0,101510.0,1.86444626]
[1734172874331,0.19669628,101520.0,101510.0,1.50364626]
[1734172874632,0.19669628,101520.0,101510.0,1.86444626]
[1734172877032,0.31472475,101520.0,101510.0,1.86444626]
[1734172877241,0.31472475,101520.0,101510.0,1.92964626]
[1734172878138,0.31472475,101520.0,101510.0,1.63449726]
[1734172878329,0.31472475,101520.0,101510.0,1.93001458]
[1734172878932,0.31472475,101520.0,101510.0,1.68319359]
[1734172879137,0.31472475,101520.0,101510.0,1.92991275]
[1734172880841,0.31472475,101520.0,101510.0,1.63439543]
[1734172881533,0.31472475,101520.0,101510.0,1.9298848]
[1734172881737,0.31472475,101520.0,101510.0,2.2906848]
[1734172881940,0.31472475,101520.0,101510.0,1.99519543]
[1734172882143,0.16727647,101520.0,101510.0,1.99519543]
[1734172882538,0.16727647,101520.0,101510.0,2.29067272]
[1734172888353,0.31472475,101520.0,101510.0,2.22547272]
[1734172890653,0.31472475,101520.0,101510.0,1.87112846]
[1734172890850,0.19669628,101520.0,101510.0,1.87112846]
[1734172891052,0.19669628,101520.0,101510.0,1.51032846]
[1734172892754,0.19669628,101520.0,101510.0,1.5102224]
[1734172896058,0.19669628,101520.0,101510.0,1.7465592]
[1734172896446,0.19669628,101520.0,101510.0,0.84366881]
[1734172896447,0.37324928,101520.0,101510.0,0.84366881]
[1734172896658,0.37324928,101520.0,101510.0,1.4999461]
[1734172896853,0.37324928,101520.0,101510.0,1.20446881]
[1734172899456,0.22324928,101520.0,101510.0,1.3816662]
[1734172899846,0.09594428,101520.0,101510.0,1.20446881]
[1734172905154,0.09594428,101520.0,101510.0,1.09397601]
[1734172905354,0.09594428,101520.0,101510.0,1.15521781]
[1734172906161,0.15718608,101520.0,101510.0,1.09397601]
[1734172906462,0.09594428,101520.0,101510.0,0.73317601]
[1734172909462,0.09594428,101520.0,101510.0,0.79441781]
[1734172912258,0.09594428,101520.0,101510.0,0.9715468]
[1734172918566,0.27249728,101520.0,101510.0,0.97161409]
[1734172919272,0.09594428,101520.0,101510.0,1.15521781]
[1734172920165,0.09594428,101520.0,101510.0,1.14322901]
[1734172920374,0.27249728,101520.0,101510.0,1.14322901]
[1734172924469,0.27249728,101520.0,101510.0,1.4387063]
[1734172925371,0.09594428,101520.0,101510.0,1.51530526]
[1734172925570,0.09594428,101520.0,101510.0,1.60740526]
[1734172926364,0.09594428,101520.0,101510.0,1.60699228]
[1734172927161,0.09594428,101520.0,101510.0,1.60667324]
[1734172927372,0.21395828,101520.0,101510.0,1.60667324]
[1734172930578,0.21395828,101520.0,101510.0,1.96747324]
[1734172932273,0.167262,101520.0,101510.0,1.96747324]
[1734172937282,0.25572536,101520.0,101510.0,1.96747324]
[1734172937677,0.25572536,101520.0,101510.0,1.90623144]
[1734172937877,0.21395828,101520.0,101510.0,2.20367084]
[1734172938585,0.21395828,101520.0,101510.0,2.20367356]
[1734172939285,0.21395828,101520.0,101510.0,2.14243176]
[1734172939471,0.21395828,101520.0,101510.0,2.20367356]
[1734172939677,0.21395828,101520.0,101510.0,1.96747324]
[1734172940069,0.25572795,101520.0,101510.0,1.96747324]
[1734172940278,0.25572874,101520.0,101510.0,1.96774956]
[1734172940473,0.20647878,101520.0,101510.0,2.32209382]
[1734172940673,0.20647878,101520.0,101510.0,2.02899136]
[1734172940878,0.20647878,101520.0,101510.0,2.32209382]
[1734172943381,0.08846478,101520.0,101510.0,2.32209382]
[1734172944483,0.08846478,101520.0,101510.0,2.07085556]
[1734172944788,0.08846478,101520.0,101510.0,2.32190797]
[1734172949186,0.08846478,101520.0,101510.0,2.32184616]
[1734172949381,0.20647878,101520.0,101510.0,2.32184616]
[1734172949580,0.08846478,101520.0,101510.0,2.32184616]
[1734172950286,0.20647878,101520.0,101510.0,2.32184616]
[1734172951480,0.20647878,101520.0,101510.0,2.38308796]
[1734172952687,0.20647878,101520.0,101510.0,2.32184616]
[1734172953483,0.111344,101530.0,101510.0,1.67210425]
[1734172953680,0.20649984,101520.0,101510.0,1.94884178]
[1734172953880,0.20649984,101520.0,101510.0,2.30964178]
[1734172955493,0.20649984,101520.0,101510.0,2.01440254]
[1734172955785,0.20649984,101520.0,101510.0,2.07564434]
[1734172955997,0.20649984,101520.0,101510.0,2.04464434]
[1734172956285,0.20649984,101520.0,101510.0,2.0645011]
[1734172957977,0.20649984,101520.0,101510.0,2.36399554]
[1734172961292,0.20649984,101520.0,101510.0,2.0645011]
[1734172962482,0.20649984,101520.0,101510.0,1.81343086]
[1734172962789,0.20649984,101520.0,101510.0,2.06487332]
[1734172965394,0.11799991,101520.0,101510.0,2.06487332]
[1734172966690,0.22848971,101520.0,101510.0,1.92267476]
[1734172966888,0.19674789,101520.0,101510.0,1.37899152]
[1734172967593,0.19674789,101520.0,101510.0,1.36384169]
[1734172970298,0.19674789,101520.0,101510.0,1.06846748]
[1734172970299,0.20643256,101520.0,101510.0,1.06846748]
[1734172971194,0.20643256,101520.0,101510.0,1.36384169]
[1734172971502,0.20643256,101520.0,101510.0,1.06846748]
[1734172974397,0.32439816,101520.0,101510.0,1.06846748]
[1734172975908,0.31471349,101520.0,101510.0,1.06846748]
[1734172982299,0.31471349,101520.0,101510.0,0.34686748]
[1734172982504,0.31471349,101520.0,101510.0,0.70766748]
[1734172983800,0.20642738,101520.0,101510.0,1.01805774]
[1734172984008,0.20642738,101520.0,101510.0,1.07929954]
[1734172984205,0.20642738,101520.0,101510.0,1.5760587]
[1734172984416,0.20642738,101520.0,101510.0,1.5148169]
[1734172985013,0.08846178,101520.0,101510.0,1.86910399]
[1734172986518,0.08846178,101520.0,101510.0,1.86914998]
[1734172986706,0.20642738,101520.0,101510.0,1.51486289]
[1734172987305,0.1179656,101520.0,101510.0,1.51486289]
[1734172988720,0.1179656,101520.0,101510.0,1.51501687]
[1734172989213,0.20643085,101520.0,101510.0,1.51501687]
[1734172992020,0.20643085,101520.0,101510.0,1.86930396]
[1734172992215,0.20643085,101520.0,101510.0,1.51501687]